bitfinex/quotes_ETHUSD_20260217
["timestamp","ask_amount","ask_price","bid_price","bid_amount"]
[1771357148484,1.25378023,2001.0,2000.2,1.06909221]
[1771357148687,1.25378023,2001.0,1999.7,1.06909221]
[1771357148688,2.29844109,2001.0,1999.7,1.06909221]
[1771357148984,2.29844109,2001.0,2000.0,0.615]
[1771357149370,2.29844109,2001.0,2000.1,1.2499375]
[1771357149572,0.0033,2000.9,2000.1,1.2499375]
[1771357150072,0.0033,2000.8,2000.1,1.2499375]
[1771357150280,0.0033,2000.8,2000.1,2.31902971]
[1771357150475,0.0033,2000.7,2000.1,2.31902971]
[1771357150653,0.0033,2000.9,2000.1,1.2499375]
[1771357150853,0.0033,2000.9,2000.2,1.06909221]
[1771357151269,0.0033,2000.9,2000.3,1.24981252]
[1771357151485,0.0033,2000.9,2000.1,0.614]
[1771357151486,0.0033,2000.8,2000.1,0.614]
[1771357151974,0.0033,2000.7,2000.1,0.614]
[1771357152360,0.0033,2000.6,2000.1,0.614]
[1771357152559,0.0033,2000.8,2000.1,1.68309221]
[1771357153085,0.0033,2000.7,2000.1,1.68309221]
[1771357153283,0.0033,2000.9,2000.1,1.68309221]
[1771357153676,0.0033,2000.8,2000.2,1.24987501]
[1771357154186,0.0033,2000.7,2000.2,1.24987501]
[1771357154364,0.0033,2000.9,2000.2,1.24987501]
[1771357154791,0.0033,2000.8,2000.2,1.24987501]
[1771357155161,0.0033,2000.7,2000.2,1.24987501]
[1771357155367,0.0033,2000.7,2000.1,6.68270461]
[1771357155368,0.0033,2000.6,2000.1,1.68309221]
[1771357155571,1.24950019,2000.8,2000.1,0.614]
[1771357156183,1.24950019,2000.8,2000.1,1.86392355]
[1771357156492,1.24950019,2000.8,1999.9,5.00013686]
[1771357156683,0.0033,2000.7,1999.9,5.00013686]
[1771357156882,0.0033,2000.7,1999.9,6.07145853]
[1771357157391,2.26301556,2000.8,1999.9,6.07145853]
[1771357157601,0.0033,2000.7,2000.2,1.07132167]
[1771357157891,0.0033,2000.9,2000.2,1.07132167]
[1771357158265,0.0033,2000.9,2000.3,1.07132167]
[1771357158683,0.0033,2000.9,2000.4,0.001]
[1771357158874,0.0011,2000.7,2000.4,1.07232167]
[1771357159687,0.0011,2000.7,2000.5,1.24968757]
[1771357162994,0.0011,2000.7,2000.5,2.32100924]
[1771357163502,0.0044,2000.7,2000.5,1.24968757]
[1771357163700,0.0044,2000.7,2000.5,2.32100924]
[1771357165185,0.0011,2000.7,2000.5,2.32100924]
[1771357165918,0.0011,2001.0,2000.8,1.07132167]
[1771357166771,0.0011,2001.0,2000.9,1.24943775]
[1771357168304,0.0011,2001.0,2000.9,2.32075942]
[1771357169306,0.0011,2001.0,2000.9,1.07132167]
[1771357169605,0.0011,2001.0,2000.9,2.32075942]
[1771357171010,0.0011,2001.2,2001.0,1.07132167]
[1771357171187,1e-08,2001.4,2001.2,1.07132167]
[1771357171391,1e-08,2001.4,2001.3,1.24918802]
[1771357172011,1e-08,2001.4,2001.3,2.32050969]
[1771357172410,0.0011,2001.6,2001.3,2.32050969]
[1771357172718,0.0011,2001.6,2001.4,0.624]
[1771357172890,0.0011,2001.7,2001.5,1.07132167]
[1771357173311,0.0011,2001.7,2001.6,1.24900079]
[1771357173626,0.0011,2001.8,2001.7,1.07132167]
[1771357173831,0.0011,2002.0,2001.8,1.07132167]
[1771357174029,0.0011,2002.1,2001.8,1.07132167]
[1771357175315,0.0011,2002.1,2001.9,1.24881362]
[1771357176895,0.0011,2002.1,2001.8,2.32014678]
[1771357177096,0.0011,2002.1,2001.4,1.07132167]
[1771357177296,1.24875124,2002.0,2001.2,1.87519617]
[1771357177528,2.18976074,2002.1,2001.2,2.94651784]
[1771357178728,1.24983436,2002.1,2001.3,1.07132167]
[1771357179618,0.0011,2002.1,2001.4,1.24912561]
[1771357180534,0.0011,2002.1,2001.3,2.32050618]
[1771357180732,0.92643524,2002.1,2001.2,0.626]
[1771357181134,0.92643524,2002.1,2001.1,1.07132167]
[1771357181345,0.92643524,2002.1,2001.0,1.87537201]
[1771357181836,2.17046142,2002.0,2001.0,2.94669368]
[1771357182214,2.17046142,2002.0,2001.1,1.07132167]
[1771357182417,1.88183954,2002.1,2001.1,1.07132167]
[1771357183036,1.24983954,2002.1,2001.1,1.07132167]
[1771357184135,0.91448714,2002.0,2001.2,1.87525044]
[1771357185010,0.91448714,2002.0,2001.2,2.9071172]
[1771357185330,0.0011,2001.9,2001.2,2.9071172]
[1771357186235,1.24991362,2001.9,2001.2,2.9071172]
[1771357187229,0.0011,2001.9,2001.3,1.03086676]
[1771357188232,0.0011,2001.9,2001.3,2.28000134]
[1771357191643,0.0011,2001.9,2001.4,1.03086676]
[1771357193750,0.0011,2001.9,2001.4,2.27999167]
[1771357194246,0.0011,2001.9,2001.4,1.03086676]
[1771357194450,0.0011,2001.9,2001.5,1.04914767]
[1771357195551,0.0011,2001.9,2001.7,1.04914767]
[1771357197844,0.0011,2001.9,2001.7,2.29804234]
[1771357198056,0.0011,2001.8,2001.7,2.29804234]
[1771357198757,0.0011,2001.9,2001.7,2.29804234]
[1771357199752,0.0011,2002.1,2001.8,1.04914767]
[1771357200459,0.0011,2002.3,2002.0,1.04914767]
[1771357201358,0.0011,2002.4,2002.0,1.04914767]
[1771357201560,0.0011,2002.4,2001.9,1.87881362]
[1771357201561,1.24811533,2003.1,2002.1,1.04914767]
[1771357201728,1.24811533,2003.1,2002.3,1.04914767]
[1771357202132,2.09931504,2003.1,2002.3,1.04914767]
[1771357202357,2.09931504,2003.1,2002.4,1.24850179]
[1771357202552,1.24803275,2003.2,2002.4,2.29764946]
[1771357202760,0.84782322,2003.5,2002.5,1.04914767]
[1771357203058,0.84782322,2003.7,2002.7,1.04914767]
[1771357203233,1.47482322,2003.7,2002.7,1.04914767]
[1771357203830,1.2476295,2003.8,2002.7,1.04914767]
[1771357204448,1.2476295,2003.8,2002.9,1.04914767]
[1771357205066,1.24871442,2003.9,2003.1,1.04914767]
[1771357205264,0.0011,2003.9,2003.1,1.04914767]
[1771357205468,0.8409658,2003.7,2002.5,1.04914767]
[1771357205762,0.83754975,2003.5,2002.5,1.04914767]
[1771357206368,0.83754975,2003.5,2002.4,0.63]
[1771357206557,0.83414211,2003.3,2002.4,0.63]
[1771357206748,0.83414211,2003.3,2002.2,2.29774235]
[1771357206944,0.83414211,2003.3,2002.2,1.04914767]
[1771357207258,0.83414211,2003.3,2002.2,2.29776823]
[1771357208069,0.83414211,2003.3,2002.2,1.04914767]
[1771357209248,1.24800319,2003.2,2002.2,1.04914767]
[1771357209586,1.44999106,2003.1,2002.2,1.04914767]
[1771357210580,0.627,2003.1,2002.2,1.04914767]
[1771357210757,0.6281,2003.1,2002.2,1.04914767]
[1771357211569,1.2481278,2003.0,2002.3,1.24856415]
[1771357212295,1.2481278,2003.0,2002.2,2.29772949]
[1771357213763,0.80531714,2003.0,2002.2,2.2977677]
[1771357214197,0.80531714,2003.0,2002.2,1.04914767]
[1771357214495,0.80531714,2002.8,2001.8,1.04914767]
[1771357214654,1.42897545,2002.7,2001.8,1.04914767]
[1771357215179,0.80197545,2002.6,2001.8,1.04914767]
[1771357215688,0.80197545,2002.6,2001.7,0.629]
[1771357215689,2.04708139,2002.5,2001.7,0.629]
[1771357216866,2.04708139,2002.5,2001.6,0.96143469]
[1771357217882,2.04708139,2002.5,2001.6,2.21043393]
[1771357219306,2.04708139,2002.5,2001.6,0.96143469]
[1771357220473,2.04708139,2002.5,2001.6,2.21043067]
[1771357221098,2.04708139,2002.5,2001.6,0.96143469]
[1771357221298,0.78209631,2002.4,2001.6,0.96143469]
[1771357221880,0.78209631,2002.4,2001.6,0.001]
[1771357222583,0.77553449,2002.2,2001.6,0.001]
[1771357222782,0.77553449,2002.1,2001.6,0.001]
[1771357222980,0.77553449,2002.1,2001.4,0.001]
[1771357223205,0.77553449,2002.1,2001.2,0.001]
[1771357223602,0.7723244,2002.0,2001.2,0.001]
[1771357223804,0.7723244,2002.0,2001.2,2.21068451]
[1771357223805,0.627,2001.9,2001.2,2.21068451]
[1771357224111,1.24856415,2002.3,2001.3,0.96043469]
[1771357224112,1.87556415,2002.3,2001.3,0.96043469]
[1771357224517,1.87556415,2002.3,2001.8,0.001]
[1771357225309,1.24856415,2002.3,2001.8,0.001]
[1771357226001,2.01437429,2002.3,2001.8,0.001]
[1771357226184,0.76581014,2002.2,2001.8,0.001]
[1771357226603,1.24868887,2002.1,2001.8,0.001]
[1771357226889,2.01125378,2002.1,2001.5,0.001]
[1771357227216,0.76256491,2002.0,2001.3,0.001]
[1771357227388,1.39056491,2002.0,2001.3,0.001]
[1771357228803,1.24881362,2001.9,2001.3,0.001]
[1771357233331,0.63,2002.2,2001.3,0.96143469]
[1771357233498,1.24868887,2002.1,2001.3,0.96143469]
[1771357234245,0.63,2002.3,2001.3,0.625]
[1771357234539,0.63,2002.3,2001.4,0.96043469]
[1771357234844,0.63,2002.6,2001.4,0.96043469]
[1771357235338,1.24843945,2002.5,2001.6,0.96043469]
[1771357235635,1.24836385,2002.7,2001.6,0.96043469]
[1771357236134,1.24836385,2002.7,2001.8,0.96043469]
[1771357236945,0.0011,2002.1,2001.8,0.96043469]
[1771357237310,0.0011,2002.1,2001.9,1.24881362]
[1771357237505,0.0011,2002.1,2002.0,0.96043469]
[1771357238309,0.0011,2002.6,2002.0,0.96043469]
[1771357239112,1.24921563,2003.1,2002.0,0.96043469]
[1771357239113,0.0011,2003.1,2002.0,0.96043469]
[1771357239314,0.0011,2003.0,2002.0,0.96043469]
[1771357239543,0.0011,2003.1,2002.2,0.96043469]
[1771357239844,0.0011,2003.1,2001.8,0.96043469]
[1771357239845,7.20012438,2002.8,2001.8,0.96043469]
[1771357240137,0.6301,2002.7,2001.8,0.96043469]
[1771357240942,0.6301,2002.7,2001.8,2.20930752]
[1771357241320,0.0011,2002.7,2001.9,0.96043469]
[1771357241528,0.0011,2002.7,2002.1,0.96043469]
[1771357242640,0.0011,2002.7,2002.2,0.96043469]
[1771357244539,0.0011,2002.7,2002.2,2.20905132]
[1771357245045,1.24917124,2003.1,2002.3,0.93054332]
[1771357245244,0.0011,2002.9,2002.3,0.93054332]
[1771357246061,0.0011,2002.9,2002.5,0.93054332]
[1771357246217,0.0011,2003.1,2002.5,0.93054332]
[1771357246544,0.0011,2003.3,2002.7,0.93054332]
[1771357246734,0.0022,2003.3,2002.7,0.93054332]
[1771357247042,0.0011,2003.6,2002.7,0.93054332]
[1771357247248,0.0011,2003.5,2002.7,0.93054332]
[1771357247939,0.0011,2003.5,2002.8,1.87325244]
[1771357248345,0.0011,2003.5,2002.8,2.80379576]
[1771357249048,0.0011,2003.6,2002.8,2.80379576]
[1771357249254,0.0011,2003.5,2002.8,2.80379576]
[1771357249631,0.0011,2003.0,2002.8,2.80379576]
[1771357252835,0.0011,2003.0,2002.8,2.80579576]
[1771357253235,0.0011,2003.0,2002.9,0.92074955]
[1771357253434,0.0011,2003.6,2003.0,0.92074955]
[1771357253635,0.0011,2003.5,2003.0,0.92074955]
[1771357255329,0.0011,2003.6,2002.8,0.627]
[1771357255531,0.0011,2003.4,2001.9,0.1024]
[1771357255729,0.67423703,2003.4,2002.1,0.92074955]
[1771357257346,0.0011,2003.4,2002.5,0.92074955]
[1771357257546,0.0011,2003.4,2002.6,0.92074955]
[1771357259995,0.0011,2003.4,2002.7,2.16906432]
[1771357261348,0.65921419,2003.4,2002.9,0.001]
[1771357261572,0.0011,2003.2,2002.9,0.001]
[1771357261872,0.0011,2003.2,2002.5,6.54237883]
[1771357261873,0.0011,2003.2,2002.7,0.001]
[1771357262769,0.0011,2003.2,2002.7,0.92174955]
[1771357264165,0.0011,2003.4,2002.9,0.92074955]
[1771357266289,0.0011,2003.4,2002.7,1.87727484]
[1771357266687,0.0011,2003.4,2002.7,0.629]
[1771357268060,0.0011,2003.4,2002.7,0.001]
[1771357270374,0.0011,2003.4,2002.7,0.92174955]
[1771357272405,0.0011,2003.4,2002.9,0.92074955]
[1771357274186,0.0011,2003.4,2002.9,0.92174955]
[1771357274382,0.0011,2003.2,2003.0,1.2481278]
[1771357274904,0.0011,2003.2,2003.0,1.8761278]
[1771357275882,0.0011,2003.2,2003.1,0.91640675]
[1771357276898,0.0011,2003.2,2003.1,2.16447224]
[1771357277590,0.0011,2003.2,2003.1,1.24806549]
[1771357278978,0.0011,2003.2,2003.0,2.79448344]
[1771357279186,0.0011,2003.2,2003.0,1.87812693]
[1771357279491,0.0011,2003.2,2003.0,0.63]
[1771357279702,0.0011,2003.2,2002.9,0.001]
[1771357283109,0.59635688,2003.2,2002.7,0.001]
[1771357283507,0.59245483,2003.0,2002.4,0.001]
[1771357284305,1.24806549,2003.1,2002.4,0.91740675]
[1771357284606,1.24912744,2003.2,2002.4,0.91740675]
[1771357286093,0.0011,2003.2,2002.5,1.24843945]
[1771357286294,0.0011,2003.0,2002.5,1.24843945]
[1771357286496,0.0011,2003.0,2002.9,0.001]
[1771357288389,0.0011,2003.0,2002.9,0.91740675]
[1771357288618,0.0011,2003.0,2002.6,0.001]
[1771357288910,0.57955509,2003.0,2002.4,0.001]
[1771357290121,1.24819012,2002.9,2002.4,0.001]
[1771357293924,0.56461871,2002.8,2002.4,0.001]
[1771357294217,1.81293348,2002.7,2001.8,2.16523622]
[1771357294441,2.43293348,2002.7,2001.8,0.91640675]
[1771357295138,0.56188855,2002.6,2001.7,0.001]
[1771357296453,1.8075748,2002.5,2001.7,0.001]
[1771357297243,1.24843945,2002.5,2001.7,0.001]
[1771357297581,0.0011,2003.0,2002.0,0.91640675]
[1771357297840,0.0011,2003.0,2002.3,0.91640675]
[1771357298211,0.0011,2003.0,2002.4,1.24850179]
[1771357298446,0.0011,2003.0,2002.5,0.91640675]
[1771357300517,0.0011,2003.0,2002.7,0.91640675]
[1771357302732,0.0011,2003.0,2002.8,1.24825244]
[1771357302945,0.0011,2003.0,2002.9,0.91640675]
[1771357304937,0.0011,2003.0,2002.9,2.16459687]
[1771357305825,0.0011,2003.2,2003.0,0.85286479]
[1771357306153,0.0011,2003.2,2002.7,1.8803092]
[1771357307151,0.0011,2003.2,2002.7,0.632]
[1771357307352,0.0011,2003.2,2002.7,1.88031098]
[1771357307925,0.0011,2003.2,2002.8,0.85286479]
[1771357309151,0.0011,2003.2,2002.9,2.10105491]
[1771357311756,0.0011,2003.0,2002.9,2.10105491]
[1771357312360,0.0011,2003.0,2002.9,0.85286479]
[1771357312584,0.0011,2003.0,2002.6,0.635]
[1771357312764,0.0011,2003.0,2002.3,2.09358243]
[1771357312952,0.0011,2003.0,2002.4,0.635]
[1771357313876,0.0011,2003.0,2002.4,1.88349979]
[1771357316052,0.0011,2003.0,2002.4,0.635]
[1771357317078,0.0011,2003.0,2002.4,1.88350115]
[1771357317263,0.0011,2003.0,2002.4,0.635]
[1771357317579,0.0011,2003.0,2002.2,1.24960283]
[1771357317755,0.0011,2003.0,2002.3,0.635]
[1771357318681,0.0011,2003.0,2002.2,0.001]
[1771357318682,0.50129186,2003.0,2002.2,0.001]
[1771357321887,1.24819012,2002.9,2002.2,0.001]
[1771357323299,1.24819012,2002.9,2002.4,0.001]
[1771357323666,0.0011,2002.8,2002.4,0.001]
[1771357330431,1.24831477,2002.7,2002.2,0.001]
[1771357331637,1.71253821,2002.7,2002.2,0.001]
[1771357331847,0.46422344,2002.5,2002.0,0.001]
[1771357332215,0.619,2002.6,2002.0,0.84604709]
[1771357332929,1.24843945,2002.5,2002.0,0.84604709]
[1771357333313,4.99332688,2002.7,2002.0,1.24974532]
[1771357333508,5.4550524,2002.7,2002.0,0.001]
[1771357335442,5.4550524,2002.7,2002.0,0.80020037]
[1771357335841,4.99332688,2002.7,2002.0,0.80020037]
[1771357336146,1.24939473,2002.8,2002.0,0.80020037]
[1771357336341,0.0011,2002.8,2002.0,0.80020037]
[1771357337321,0.0011,2002.8,2002.2,0.79920037]
[1771357337650,0.0011,2002.8,2002.2,0.80020037]
[1771357339619,0.0011,2002.8,2002.3,0.79920037]
[1771357344652,0.0011,2002.8,2002.4,0.79920037]
[1771357345462,0.0011,2002.8,2002.3,0.79920037]
[1771357349338,0.0011,2002.8,2002.4,0.001]
[1771357349548,0.0011,2002.6,2002.4,0.001]
[1771357355868,0.40625537,2002.6,2002.2,0.001]
[1771357356069,0.40625537,2002.6,2002.0,0.001]
[1771357356652,0.0011,2002.6,2002.0,0.80020037]
[1771357357077,0.0011,2002.6,2002.1,0.79920037]
[1771357357660,1.2494771,2002.6,2002.1,0.79920037]
[1771357358649,0.0011,2002.6,2002.2,0.79920037]
[1771357358869,0.0011,2002.8,2002.2,0.79920037]
[1771357359271,0.0011,2002.8,2002.3,0.79920037]
[1771357359652,0.0011,2002.8,2002.5,0.79920037]
[1771357360781,0.0011,2003.0,2002.4,1.24850179]
[1771357360981,0.0088,2003.4,2002.6,0.79920037]
[1771357361168,0.0088,2003.4,2002.8,0.79920037]
[1771357361169,0.0012,2003.2,2002.8,0.79920037]
[1771357361579,0.0088,2003.4,2002.8,0.79920037]
[1771357361876,0.01,2003.4,2003.0,0.79920037]
[1771357363364,0.0011,2003.2,2003.0,0.79920037]
[1771357363765,0.0011,2003.2,2003.1,2.04726586]
[1771357364069,0.0011,2003.2,2003.1,0.79920037]
[1771357365752,0.0011,2003.5,2003.4,0.74297084]
[1771357366477,0.0011,2003.5,2003.4,0.73417084]
[1771357368581,0.0023,2003.5,2002.5,1.24843945]
[1771357368788,0.0023,2003.5,2002.7,0.74297084]
[1771357368990,0.0011,2003.5,2002.7,1.37297084]
[1771357369294,0.0011,2003.5,2002.8,0.74297084]
[1771357371394,0.0011,2003.5,2002.9,0.74297084]
[1771357372505,0.0012,2003.4,2002.9,0.74297084]
[1771357374401,0.0012,2003.4,2003.0,0.80791263]
[1771357374601,0.0012,2003.4,2002.5,0.80791263]
[1771357374805,0.0012,2003.4,2002.9,0.80791263]
[1771357375303,0.0012,2003.4,2003.1,0.80891263]
[1771357375500,0.0012,2003.3,2003.1,0.80891263]
[1771357375678,0.0011,2003.2,2003.1,0.80891263]
[1771357379681,0.0011,2003.2,2003.1,2.05697812]
[1771357379881,0.0011,2003.2,2003.1,0.80891263]
[1771357383385,0.0011,2003.4,2003.2,0.80791263]
[1771357383606,0.0023,2003.4,2003.2,0.80791263]
[1771357386011,0.0023,2003.4,2003.2,2.05586942]
[1771357386186,0.0011,2003.4,2003.3,0.80791263]
[1771357388189,0.0011,2003.4,2003.3,2.05585352]
[1771357388910,0.0011,2003.5,2003.4,0.80791263]
[1771357390820,0.0011,2003.5,2003.4,2.05579123]
[1771357393605,0.33175659,2004.7,2003.5,0.80791263]
[1771357393811,0.33295659,2004.7,2003.7,0.80791263]
[1771357395514,1.24713159,2004.6,2003.9,0.74585642]
[1771357395723,0.32742425,2004.5,2003.8,1.99348592]
[1771357397050,1.24713159,2004.6,2003.9,0.74585642]
[1771357397199,0.32643284,2004.5,2003.8,1.2476295]
[1771357397544,4.98872638,2004.6,2003.8,0.74585642]
[1771357397707,1.24844293,2004.5,2003.8,0.74585642]
[1771357397889,0.0012,2004.5,2003.8,0.74585642]
[1771357399043,1.24713266,2004.6,2003.8,0.74585642]
[1771357399252,0.0012,2004.5,2003.8,0.74585642]
[1771357399807,0.0012,2004.5,2003.9,1.24756724]
[1771357400009,0.0023,2004.5,2003.9,1.24756724]
[1771357400507,0.0023,2004.5,2003.8,1.99344019]
[1771357400508,0.32098742,2004.5,2003.8,1.99344019]
[1771357400709,0.32098742,2004.5,2003.6,1.38485642]
[1771357401807,1.24725603,2004.4,2003.7,0.74585642]
[1771357402330,0.0012,2004.3,2003.7,0.74585642]
[1771357402531,0.0012,2004.3,2003.4,1.99470949]
[1771357402532,0.31434766,2004.2,2003.4,1.99470949]
[1771357402754,0.31434766,2004.2,2003.5,0.74585642]
[1771357403131,0.0012,2004.3,2003.5,0.74585642]
[1771357404733,0.30787353,2004.2,2003.5,0.74585642]
[1771357404936,0.30787353,2004.2,2003.4,1.88687013]
[1771357404937,0.30787353,2004.2,2003.4,2.63272655]
[1771357405106,0.30907353,2004.1,2003.4,0.639]
[1771357405309,0.30787353,2004.1,2003.4,0.001]
[1771357405507,0.3057249,2003.8,2003.2,0.001]
[1771357405928,0.3069249,2003.7,2003.2,0.001]
[1771357406115,0.3057249,2003.7,2003.2,0.001]
[1771357406318,0.0012,2003.6,2003.2,0.001]
[1771357406723,1.24895404,2003.6,2003.2,0.001]
[1771357407042,0.0012,2003.6,2003.2,0.001]
[1771357407715,0.30267104,2003.6,2003.2,0.001]
[1771357408818,1.24900178,2003.6,2003.2,0.001]
[1771357410026,6.86577197,2003.6,2003.2,0.001]
[1771357411914,6.86457197,2003.6,2003.2,0.001]
[1771357412534,6.86457197,2003.6,2003.4,0.001]
[1771357412744,6.86457197,2003.6,2003.2,0.001]
[1771357413619,6.86452618,2003.6,2003.2,0.001]
[1771357416054,0.0012,2003.5,2003.2,0.001]
[1771357416556,6.86452618,2003.6,2003.2,0.001]
[1771357416557,1.2477549,2003.6,2003.2,0.69280747]
[1771357416766,0.0012,2003.5,2003.2,0.69280747]
[1771357418748,0.0012,2003.5,2003.2,0.001]
[1771357419459,5.61677019,2003.6,2003.2,0.001]
[1771357419658,0.0012,2003.5,2003.2,0.001]
[1771357420257,5.61677019,2003.4,2002.9,0.001]
[1771357420958,4.99053259,2003.8,2002.9,0.001]
[1771357420959,0.619,2003.8,2003.1,0.69180747]
[1771357421177,0.0012,2003.8,2003.6,0.69180747]
[1771357421337,0.0011,2004.0,2003.6,0.69180747]
[1771357421663,0.0023,2004.0,2003.6,0.69180747]
[1771357422074,1.2498148,2004.0,2003.6,0.69180747]
[1771357422255,5.61677019,2003.9,2003.3,0.69180747]
[1771357422845,0.0012,2003.8,2003.3,0.69180747]
[1771357423744,5.61677019,2003.7,2003.3,0.69180747]
[1771357423933,0.0012,2003.8,2003.1,0.69180747]
[1771357424138,0.0012,2003.6,2003.1,0.69180747]
[1771357424361,0.6212,2003.9,2003.2,0.69180747]
[1771357424552,0.6212,2003.9,2003.4,0.001]
[1771357424750,0.0011,2003.8,2003.4,0.001]
[1771357425168,0.0012,2003.7,2003.4,0.001]
[1771357426076,0.0012,2003.7,2003.4,0.69941489]
[1771357426379,0.0012,2003.7,2003.6,0.69841489]
[1771357427469,0.0011,2003.8,2003.6,0.69841489]
[1771357427768,0.0012,2003.7,2003.6,0.69841489]
[1771357429077,0.0011,2003.8,2003.6,0.69841489]
[1771357429290,0.0012,2003.7,2003.6,0.69841489]
[1771357432255,0.0011,2003.8,2003.7,0.69841489]
[1771357432459,0.0023,2003.8,2003.7,0.69841489]
[1771357432684,0.0023,2003.8,2003.5,1.94618151]
[1771357433384,0.0023,2003.8,2003.6,0.72461952]
[1771357434188,0.0011,2004.0,2003.6,0.72461952]
[1771357434367,0.0034,2004.0,2003.6,0.72461952]
[1771357434571,0.0011,2004.0,2003.6,0.72461952]
[1771357435371,0.0011,2004.0,2003.8,0.72461952]
[1771357435566,0.0011,2004.0,2003.9,1.36461952]
[1771357436402,0.0011,2004.0,2003.7,1.24769177]
[1771357436403,0.0034,2004.0,2003.7,1.97231129]
[1771357436569,0.0034,2004.0,2003.7,2.61231129]
[1771357437967,0.0011,2003.8,2003.5,1.9723919]
[1771357438168,0.0011,2003.8,2003.6,0.641]
[1771357438700,0.0023,2003.7,2003.5,1.97243482]
[1771357439001,0.0023,2003.7,2003.5,2.61343482]
[1771357439505,0.0023,2003.7,2003.6,0.72461952]
[1771357439684,0.0023,2003.7,2003.6,1.97237356]
[1771357440884,0.0023,2003.7,2003.6,0.72461952]
[1771357441085,0.0023,2003.7,2003.5,1.88981232]
[1771357441305,0.0023,2003.7,2003.6,0.72461952]
[1771357441887,0.0011,2003.8,2003.7,0.72461952]
[1771357442092,0.0011,2004.0,2003.7,0.72461952]
[1771357442296,0.0011,2004.0,2003.9,0.72461952]
[1771357442488,0.0011,2004.0,2003.8,0.643]
[1771357442880,0.0011,2004.0,2003.8,0.72461952]
[1771357443216,0.0011,2004.0,2003.8,1.36761952]
[1771357443588,0.0011,2004.0,2003.6,1.24775404]
[1771357443589,0.0011,2004.0,2003.6,1.97237356]
[1771357443798,0.0011,2004.0,2003.7,0.644]
[1771357445705,0.0011,2004.0,2003.5,1.36861952]
[1771357446397,0.0011,2004.0,2003.7,0.72461952]
[1771357447000,0.0011,2004.0,2003.9,0.72461952]
[1771357447602,0.0011,2004.2,2004.0,0.72461952]
[1771357448626,0.0011,2004.2,2004.1,1.24744274]
[1771357448823,0.0011,2004.2,2004.0,1.97207487]
[1771357449826,0.0011,2004.2,2004.0,0.72461952]
[1771357450132,0.0011,2004.2,2004.0,1.97211937]
[1771357451125,0.0011,2004.2,2004.0,1.97212445]
[1771357453130,0.0011,2004.3,2004.2,0.72461952]
[1771357454230,4.98691673,2005.3,2004.2,0.72461952]
[1771357454428,4.98691673,2005.3,2004.4,0.66533834]
[1771357454606,4.98691673,2005.3,2004.6,0.66533834]
[1771357454802,5.6098536,2005.2,2004.6,0.66533834]
[1771357455028,6.85664139,2005.2,2004.6,1.91242059]
[1771357455406,4.98691673,2005.3,2004.6,1.91242059]
[1771357455407,1.24674131,2005.3,2004.6,1.91242059]
[1771357455607,5.6098536,2004.7,2004.0,0.66533834]
[1771357455927,0.20546157,2004.8,2004.0,1.31233834]
[1771357456235,0.20546157,2004.8,2004.0,1.95933834]
[1771357456927,0.22258713,2005.0,2004.1,0.66533834]
[1771357457134,0.22258713,2004.8,2004.2,0.647]
[1771357457434,0.22258713,2004.8,2004.0,1.24747775]
[1771357457736,0.22258713,2004.8,2004.1,0.647]
[1771357459043,0.22258713,2004.8,2003.9,2.55986753]
[1771357459214,1.24706938,2004.7,2004.0,0.647]
[1771357460742,1.46179826,2004.7,2004.0,0.647]
[1771357461540,1.24706938,2004.7,2004.1,0.66533834]
[1771357462855,4.98799688,2004.9,2004.2,1.31333834]
[1771357463038,0.0011,2004.5,2004.2,1.31333834]
[1771357464843,0.0011,2004.5,2004.2,2.56071409]
[1771357465042,0.0011,2004.5,2004.3,0.66533834]
[1771357465429,0.0011,2004.5,2004.4,0.647]
[1771357467947,0.0011,2004.5,2004.2,0.001]
[1771357468115,0.0011,2004.5,2004.2,0.648]
[1771357468738,0.0011,2004.5,2004.2,1.31333834]
[1771357468943,0.0011,2004.5,2004.3,0.66533834]
[1771357469314,0.0011,2004.5,2004.4,0.647]
[1771357469524,0.0011,2004.7,2004.4,0.6459]
[1771357470233,0.0011,2004.7,2004.4,2.55847171]
[1771357470535,0.0011,2004.7,2004.5,0.66533834]
[1771357470718,6.48,2004.9,2004.5,0.66533834]
[1771357470915,6.48,2004.9,2004.7,0.66533834]
[1771357471425,7.72680139,2005.2,2004.8,0.6448]
[1771357472248,6.48,2005.2,2004.8,0.6448]
[1771357472453,0.19352417,2005.8,2004.8,1.89180335]
[1771357472750,0.19352417,2005.8,2004.9,0.66533834]
[1771357472751,0.615,2005.6,2004.9,0.66533834]
[1771357473130,0.615,2005.6,2005.0,0.6448]
[1771357474145,1.24644762,2005.7,2005.1,0.66533834]
[1771357476248,0.18591093,2005.6,2004.7,0.66533834]
[1771357476444,1.24657192,2005.5,2004.7,0.66533834]
[1771357476946,1.24657192,2005.5,2004.7,1.91240093]
[1771357477128,1.24657192,2005.5,2004.8,0.66533834]
[1771357477328,0.0011,2005.5,2004.8,0.66533834]
[1771357478523,0.0011,2005.5,2004.9,0.66533834]
[1771357480532,0.0011,2005.5,2004.9,1.91227692]
[1771357481124,0.0011,2005.5,2004.9,0.66533834]
[1771357481526,0.0011,2005.5,2004.9,1.91226822]
[1771357482026,0.0011,2005.5,2005.0,0.66533834]
[1771357482728,0.0011,2005.5,2005.1,0.66533834]
[1771357484662,0.0011,2005.5,2004.8,0.646]
[1771357484954,0.0011,2005.5,2005.0,0.71367223]
[1771357486749,0.0011,2005.5,2005.2,0.71367223]
[1771357488721,0.0011,2005.7,2005.3,1.24669625]
[1771357488956,0.0011,2005.7,2005.4,0.71367223]
[1771357490030,4.98383837,2006.5,2005.4,0.71367223]
[1771357490866,0.0011,2006.4,2005.6,0.71367223]
[1771357491435,0.0011,2006.4,2005.7,0.71367223]
[1771357492659,0.0011,2006.0,2005.7,0.71367223]
[1771357492879,0.899,2007.3,2005.9,0.70043144]
[1771357492880,0.17364752,2007.2,2005.9,0.70043144]
[1771357493155,0.17364752,2007.2,2006.1,0.70043144]
[1771357493156,0.0011,2007.1,2006.1,0.70043144]
[1771357493729,0.17290685,2007.1,2006.1,1.34743144]
[1771357494166,0.17180685,2006.9,2005.9,1.34743144]
[1771357494560,0.0011,2006.8,2005.9,1.34743144]
[1771357494757,0.0011,2006.8,2006.0,0.70043144]